fUST/lending_fUST_20250906
["ID","MTS","AMOUNT","RATE_DAILY","PERIOD"]
[383721267,1757099442943,-1407.36,0.00013972,2]
[383721268,1757099442954,-480.0,0.00013972,2]
[383721269,1757099442963,-2266.64,0.00013972,2]
[383721270,1757099442974,-480.0,0.00013972,2]
[383721271,1757099442985,-500.0,0.00013973,2]
[383721272,1757099442994,-500.0,0.00013973,2]
[383721273,1757099443004,-6912.31625492,0.0001399,2]
[383721274,1757099443014,-480.0,0.00014246,2]
[383721275,1757099443023,-480.0,0.00014246,2]
[383721276,1757099443034,-480.0,0.00014246,2]
[383721277,1757099443043,-480.0,0.00014246,2]
[383721278,1757099443055,-480.0,0.00014246,2]
[383721279,1757099443065,-560.74544533,0.00014246,2]
[383721280,1757099443076,-480.0,0.00014246,2]
[383721281,1757099443086,-480.0,0.00014246,2]
[383721282,1757099443096,-480.0,0.00014246,2]
[383721283,1757099443106,-779.28,0.00014246,2]
[383721284,1757099443117,-480.0,0.00014246,2]
[383721285,1757099443127,-480.0,0.00014246,2]
[383721286,1757099443136,-508.43,0.00014246,2]
[383721287,1757099443145,-480.0,0.00014246,2]
[383721289,1757099443156,-480.0,0.00014246,2]
[383721291,1757099443165,-480.0,0.00014246,2]
[383721293,1757099443174,-480.0,0.00014246,2]
[383721294,1757099443183,-480.0,0.00014246,2]
[383721295,1757099443192,-897.93,0.00014246,2]
[383721296,1757099443202,-480.0,0.00014246,2]
[383721297,1757099443211,-252.0223145,0.00014246,2]
[383721298,1757099443221,-480.0,0.00014246,2]
[383721299,1757099443230,-480.0,0.00014246,2]
[383721300,1757099443240,-2037.88,0.00014246,2]
[383721301,1757099443249,-1288.33,0.00014246,2]
[383721302,1757099443258,-480.0,0.00014246,2]
[383721303,1757099443267,-1053.52,0.00014246,2]
[383721304,1757099443277,-480.0,0.00014246,2]
[383721305,1757099443286,-699.54,0.00014246,2]
[383721306,1757099443295,-480.0,0.00014246,2]
[383721307,1757099443305,-480.0,0.00014246,2]
[383721308,1757099443314,-480.0,0.00014246,2]
[383721309,1757099443324,-480.0,0.00014246,2]
[383721310,1757099443334,-480.0,0.00014246,2]
[383721311,1757099443343,-480.0,0.00014246,2]
[383721312,1757099443353,-480.0,0.00014246,2]
[383721313,1757099443362,-565.8,0.00014246,2]
[383721314,1757099443372,-480.0,0.00014246,2]
[383721315,1757099443381,-480.0,0.00014246,2]
[383721316,1757099443391,-480.0,0.00014246,2]
[383721317,1757099443400,-480.0,0.00014246,2]
[383721318,1757099443409,-480.0,0.00014246,2]
[383721319,1757099443418,-480.0,0.00014246,2]
[383721320,1757099443427,-480.0,0.00014246,2]
[383721321,1757099443437,-778.91,0.00014246,2]
[383721322,1757099443446,-968.49,0.00014246,2]
[383721323,1757099443456,-480.0,0.00014246,2]
[383721324,1757099443465,-480.0,0.00014246,2]
[383721325,1757099443475,-480.0,0.00014246,2]
[383721326,1757099443484,-480.0,0.00014246,2]
[383721327,1757099443493,-480.0,0.00014246,2]
[383721328,1757099443503,-480.0,0.00014246,2]
[383721329,1757099443513,-480.0,0.00014246,2]
[383721330,1757099443522,-575.31,0.00014246,2]
[383721331,1757099443532,-480.0,0.00014246,2]
[383721332,1757099443541,-480.0,0.00014246,2]
[383721333,1757099443551,-480.0,0.00014246,2]
[383721334,1757099443560,-480.0,0.00014246,2]
[383721335,1757099443569,-480.0,0.00014246,2]
[383721336,1757099443579,-480.0,0.00014246,2]
[383721337,1757099443588,-480.0,0.00014246,2]
[383721338,1757099443597,-480.0,0.00014246,2]
[383721339,1757099443607,-480.0,0.00014246,2]
[383721340,1757099443617,-480.0,0.00014246,2]
[383721341,1757099443626,-480.0,0.00014246,2]
[383721342,1757099443636,-480.0,0.00014246,2]
[383721343,1757099443646,-480.0,0.00014246,2]
[383721344,1757099443655,-480.0,0.00014246,2]
[383721345,1757099443665,-658.89,0.00014246,2]
[383721346,1757099443677,-480.0,0.00014246,2]
[383721347,1757099443686,-480.0,0.00014246,2]
[383721348,1757099443696,-992.1,0.00014246,2]
[383721349,1757099443705,-480.0,0.00014246,2]
[383721350,1757099443716,-480.0,0.00014246,2]
[383721351,1757099443726,-1140.48,0.00014246,2]
[383721352,1757099443737,-710.02,0.00014246,2]
[383721353,1757099443749,-480.0,0.00014246,2]
[383721354,1757099443758,-480.0,0.00014246,2]
[383721355,1757099443767,-480.0,0.00014246,2]
[383721356,1757099443777,-871.55,0.00014246,2]
[383721357,1757099443788,-480.0,0.00014246,2]
[383721358,1757099443798,-480.0,0.00014246,2]
[383721359,1757099443808,-480.0,0.00014246,2]
[383721360,1757099443817,-480.0,0.00014246,2]
[383721361,1757099443827,-829.43,0.00014246,2]
[383721362,1757099443837,-690.93,0.00014246,2]
[383721363,1757099443847,-480.0,0.00014246,2]
[383721364,1757099443858,-510.47,0.00014246,2]
[383721365,1757099443867,-1861.7,0.00014246,2]
[383721366,1757099443876,-480.0,0.00014246,2]
[383721367,1757099443887,-2809.74,0.00014246,2]
[383721368,1757099443896,-794.96,0.00014246,2]
[383721369,1757099443906,-480.0,0.00014246,2]
[383721370,1757099443915,-639.26,0.00014246,2]
[383721371,1757099443924,-809.73,0.00014246,2]
[383721372,1757099443934,-480.0,0.00014246,2]
[383721373,1757099443943,-113.5309819,0.00014246,2]
[383721374,1757099444077,-1636.6290181,0.00014246,2]
[383721375,1757099444088,-2170.24245406,0.00014246,2]
[383721376,1757099444105,-125.42754594,0.00014246,2]
[383721377,1757099444113,-480.0,0.00014246,2]
[383721378,1757099444121,-263.53205404,0.00014246,2]
[383721379,1757099444136,-3093.84794596,0.00014246,2]
[383721380,1757099444148,-1129.67,0.00014246,2]
[383721381,1757099444157,-480.0,0.00014246,2]
[383721382,1757099444166,-480.0,0.00014246,2]
[383721383,1757099444176,-480.0,0.00014246,2]
[383721384,1757099444185,-500.3,0.00014246,2]
[383721385,1757099444194,-1936.22,0.00014246,2]
[383721386,1757099444204,-480.0,0.00014246,2]
[383721387,1757099444213,-480.0,0.00014246,2]
[383721388,1757099444223,-480.0,0.00014246,2]
[383721389,1757099444232,-480.0,0.00014246,2]
[383721390,1757099444241,-2939.24,0.00014246,2]
[383721391,1757099444250,-480.0,0.00014246,2]
[383721392,1757099444259,-763.03,0.00014246,2]
[383721393,1757099444269,-1926.79,0.00014246,2]
[383721394,1757099444278,-143.6806202,0.00014246,2]
[383721395,1757099444290,-386.3493798,0.00014246,2]
[383721396,1757099444299,-11.69212126,0.00014246,2]
[383721397,1757099444311,-468.30787874,0.00014246,2]
[383721398,1757099444321,-1136.55,0.00014246,2]
[383721399,1757099444330,-166.92,0.00014246,2]
[383721400,1757099444340,-766.21,0.00014246,2]
[383721401,1757099444349,-714.06,0.00014246,2]
[383721402,1757099444358,-480.0,0.00014246,2]
[383721403,1757099444368,-480.0,0.00014246,2]
[383721404,1757099444377,-480.0,0.00014246,2]
[383721405,1757099444387,-1414.53980441,0.00014246,2]
[383721406,1757099444699,-480.0,0.00013698,2]
[383721407,1757099444709,-480.0,0.00013698,2]
[383721408,1757099444718,-480.0,0.00013972,2]
[383721409,1757099444729,-8327.37019559,0.00014246,2]
[383721410,1757099444738,-480.0,0.00014246,2]
[383721411,1757099444747,-480.0,0.00014246,2]
[383721412,1757099444757,-480.0,0.00014246,2]
[383721413,1757099444885,-804.09,0.00014246,2]
[383721414,1757099444896,-629.48,0.00014246,2]
[383721415,1757099444906,-3895.81,0.00014246,2]
[383721416,1757099444916,-480.0,0.00014246,2]
[383721417,1757099444926,-480.0,0.00014246,2]
[383721418,1757099444935,-1564.21,0.00014246,2]
[383721419,1757099444944,-480.0,0.00014246,2]
[383721420,1757099444954,-756.39,0.00014246,2]
[383721421,1757099444963,-5062.56,0.00014246,2]
[383721422,1757099444973,-5453.14,0.00014246,2]
[383721423,1757099444982,-480.0,0.00014246,2]
[383721424,1757099444991,-463.70404932,0.00014246,2]
[383721425,1757099445001,-766.18,0.00014246,2]
[383721426,1757099445011,-656.6,0.00014246,2]
[383721427,1757099445020,-181.02,0.00014246,2]
[383721428,1757099445029,-1460.81,0.00014246,2]
[383721429,1757099445039,-480.0,0.00014246,2]
[383721430,1757099445048,-894.06,0.00014246,2]
[383721431,1757099445058,-480.0,0.00014246,2]
[383721432,1757099445067,-2873.28,0.00014246,2]
[383721433,1757099445076,-480.0,0.00014246,2]
[383721434,1757099445086,-1444.3,0.00014246,2]
[383721435,1757099445096,-840.57,0.00014246,2]
[383721436,1757099445106,-1057.41,0.00014246,2]
[383721437,1757099445116,-480.0,0.00014246,2]
[383721438,1757099445125,-1407.36,0.00014246,2]
[383721439,1757099445136,-480.0,0.00014246,2]
[383721440,1757099445145,-2266.64,0.00014246,2]
[383721441,1757099445155,-347.53,0.00014246,2]
[383721442,1757099445164,-500.0,0.0001436,2]
[383721443,1757099445175,-500.0,0.0001436,2]
[383721445,1757099445185,-500.0,0.0001436,2]
[383721446,1757099445196,-500.0,0.0001437,2]
[383721447,1757099445205,-151.0,0.000144,2]
[383721448,1757099445216,-151.0,0.000144,2]
[383721449,1757099445225,-151.0,0.000144,2]
[383721450,1757099445234,-500.0,0.00014419,2]
[383721451,1757099445243,-500.0,0.00014419,2]
[383721452,1757099445253,-500.0,0.00014419,2]
[383721453,1757099445262,-500.0,0.00014419,2]
[383721454,1757099445271,-500.0,0.00014419,2]
[383721455,1757099445280,-189.15919808,0.00014436,2]
[383721456,1757099445289,-160.0,0.00014507,2]
[383721457,1757099445299,-480.0,0.0001452,2]
[383721458,1757099445308,-488.17665519,0.0001452,2]
[383721459,1757099445317,-480.0,0.0001452,2]
[383721460,1757099445326,-480.0,0.0001452,2]
[383721461,1757099445336,-573.65301586,0.0001452,2]
[383721462,1757099445345,-480.0,0.0001452,2]
[383721463,1757099445354,-480.0,0.0001452,2]
[383721464,1757099445364,-343.14,0.0001452,2]
[383721465,1757099445373,-779.28,0.0001452,2]
[383721466,1757099445382,-480.0,0.0001452,2]
[383721467,1757099445392,-480.0,0.0001452,2]
[383721468,1757099445402,-480.0,0.0001452,2]
[383721469,1757099445412,-480.0,0.0001452,2]
[383721470,1757099445422,-480.0,0.0001452,2]
[383721471,1757099445432,-482.14472547,0.0001452,2]
[383721472,1757099445442,-897.93,0.0001452,2]
[383721473,1757099445453,-480.0,0.0001452,2]
[383721474,1757099445463,-480.0,0.0001452,2]
[383721475,1757099445473,-480.0,0.0001452,2]
[383721476,1757099445483,-2037.88,0.0001452,2]
[383721477,1757099445493,-1288.33,0.0001452,2]
[383721478,1757099445503,-480.0,0.0001452,2]
[383721479,1757099445512,-1053.52,0.0001452,2]
[383721480,1757099445523,-480.0,0.0001452,2]
[383721481,1757099445533,-699.54,0.0001452,2]
[383721482,1757099445543,-480.0,0.0001452,2]
[383721483,1757099445552,-480.0,0.0001452,2]
[383721484,1757099445562,-480.0,0.0001452,2]
[383721485,1757099445571,-480.0,0.0001452,2]
[383721486,1757099445580,-480.0,0.0001452,2]
[383721487,1757099445588,-533.1,0.0001452,2]
[383721488,1757099445597,-565.8,0.0001452,2]
[383721489,1757099445606,-480.0,0.0001452,2]
[383721490,1757099445615,-480.0,0.0001452,2]
[383721491,1757099445624,-480.0,0.0001452,2]
[383721492,1757099445632,-480.0,0.0001452,2]
[383721493,1757099445642,-480.0,0.0001452,2]
[383721494,1757099445651,-480.0,0.0001452,2]
[383721495,1757099445660,-185.47953218,0.0001452,2]
[383721496,1757099445670,-778.91,0.0001452,2]
[383721497,1757099445681,-968.49,0.0001452,2]
[383721498,1757099445691,-480.0,0.0001452,2]
[383721499,1757099445700,-480.0,0.0001452,2]
[383721500,1757099445711,-480.0,0.0001452,2]
[383721501,1757099445721,-480.0,0.0001452,2]
[383721502,1757099445731,-480.0,0.0001452,2]
[383721503,1757099445740,-480.0,0.0001452,2]
[383721504,1757099445751,-480.0,0.0001452,2]
[383721505,1757099445761,-575.31,0.0001452,2]
[383721506,1757099445770,-480.0,0.0001452,2]
[383721507,1757099445780,-480.0,0.0001452,2]
[383721508,1757099445789,-480.0,0.0001452,2]
[383721509,1757099445799,-480.0,0.0001452,2]
[383721510,1757099445809,-480.0,0.0001452,2]
[383721511,1757099445818,-480.0,0.0001452,2]
[383721512,1757099445828,-340.64065777,0.0001452,2]
[383721513,1757099445838,-480.0,0.0001452,2]
[383721514,1757099445848,-480.0,0.0001452,2]
[383721515,1757099445858,-480.0,0.0001452,2]
[383721516,1757099445867,-658.89,0.0001452,2]
[383721517,1757099445878,-480.0,0.0001452,2]
[383721518,1757099445888,-480.0,0.0001452,2]
[383721519,1757099445898,-992.1,0.0001452,2]
[383721520,1757099445907,-480.0,0.0001452,2]
[383721521,1757099445917,-1140.48,0.0001452,2]
[383721522,1757099445928,-710.02,0.0001452,2]
[383721523,1757099445938,-480.0,0.0001452,2]
[383721524,1757099445949,-480.0,0.0001452,2]
[383721525,1757099445958,-871.55,0.0001452,2]
[383721526,1757099445969,-480.0,0.0001452,2]
[383721527,1757099445979,-480.0,0.0001452,2]
[383721528,1757099445989,-480.0,0.0001452,2]
[383721529,1757099445999,-480.0,0.0001452,2]
[383721530,1757099446008,-829.43,0.0001452,2]
[383721531,1757099446018,-690.93,0.0001452,2]
[383721532,1757099446027,-480.0,0.0001452,2]
[383721533,1757099446037,-510.47,0.0001452,2]
[383721534,1757099446047,-1861.7,0.0001452,2]
[383721535,1757099446056,-480.0,0.0001452,2]
[383721536,1757099446066,-2809.74,0.0001452,2]
[383721537,1757099446076,-480.0,0.0001452,2]
[383721538,1757099446085,-639.26,0.0001452,2]
[383721539,1757099446095,-809.73,0.0001452,2]
[383721540,1757099446105,-480.0,0.0001452,2]
[383721541,1757099446115,-1750.16,0.0001452,2]
[383721542,1757099446125,-2295.67,0.0001452,2]
[383721543,1757099446134,-480.0,0.0001452,2]
[383721544,1757099446144,-3357.38,0.0001452,2]
[383721545,1757099446154,-1129.67,0.0001452,2]
[383721546,1757099446163,-480.0,0.0001452,2]
[383721547,1757099446173,-480.0,0.0001452,2]
[383721548,1757099446183,-480.0,0.0001452,2]
[383721549,1757099446192,-1936.22,0.0001452,2]
[383721550,1757099446201,-480.0,0.0001452,2]
[383721551,1757099446211,-480.0,0.0001452,2]
[383721552,1757099446220,-480.0,0.0001452,2]
[383721553,1757099446230,-480.0,0.0001452,2]
[383721554,1757099446239,-2939.24,0.0001452,2]
[383721555,1757099446249,-480.0,0.0001452,2]
[383721556,1757099446258,-763.03,0.0001452,2]
[383721557,1757099446268,-1926.79,0.0001452,2]
[383721558,1757099446277,-530.03,0.0001452,2]
[383721559,1757099446287,-409.39498672,0.0001452,2]
[383721560,1757099446296,-1136.55,0.0001452,2]
[383721561,1757099446306,-766.21,0.0001452,2]
[383721562,1757099446315,-473.13884776,0.0001452,2]
[383721563,1757099446329,-240.92115224,0.0001452,2]
[383721564,1757099446339,-480.0,0.0001452,2]
[383721565,1757099446348,-480.0,0.0001452,2]
[383721566,1757099446358,-9741.91,0.0001452,2]
[383721567,1757099446367,-480.0,0.0001452,2]
[383721568,1757099446377,-480.0,0.0001452,2]
[383721569,1757099446386,-348.15,0.0001452,2]
[383721570,1757099446396,-804.09,0.0001452,2]
[383721571,1757099446405,-629.48,0.0001452,2]
[383721572,1757099446415,-3895.81,0.0001452,2]
[383721573,1757099446424,-480.0,0.0001452,2]
[383721574,1757099446434,-480.0,0.0001452,2]
[383721575,1757099446443,-1564.21,0.0001452,2]
[383721576,1757099446452,-480.0,0.0001452,2]
[383721577,1757099446462,-288.63819847,0.0001452,2]
[383721578,1757099446474,-257.50000006,0.0001452,2]
[383721579,1757099446782,-480.0,0.00013698,2]
[383721580,1757099446791,-480.0,0.00013698,2]
[383721581,1757099446800,-300.0,0.0001397,2]
[383721582,1757099446810,-300.0,0.0001397,2]
[383721583,1757099446819,-619.54910721,0.0001397,2]
[383721584,1757099446837,-569.999999,0.0001397,2]
[383721585,1757099447054,-480.0,0.00013698,2]
[383721586,1757099447065,-480.0,0.00013698,2]
[383721587,1757099447075,-480.0,0.00013698,2]
[383721588,1757099447084,-480.0,0.00013698,2]
[383721589,1757099447094,-833.29401918,0.0001397,2]
[383721590,1757099447105,-300.0,0.0001397,2]
[383721591,1757099447114,-290.94557614,0.0001397,2]
[383721592,1757099666881,-151.90179474,0.0001356,2]
[383721593,1757099679350,-13.09820526,0.0001356,2]
[383721594,1757099679372,-390.29020639,0.00013598,2]
[383721595,1757099691078,-341.84314002,0.00013462,2]
[383721596,1757099786582,-198.01979128,0.00013194,2]
[383721597,1757099786604,-3.75731037,0.00013327,2]
[383721598,1757099831913,4202.1226919,0.00012697,2]
[383721599,1757099844143,5797.8873081,0.00012697,2]
[383721600,1757099844166,10000.01,0.00012697,2]
[383721601,1757099844187,4202.1226919,0.00012697,2]
[383721602,1757099846122,-153.72252233,0.00013194,2]
[383721603,1757099856252,-40.53995858,0.00013194,2]
[383721605,1757099890044,-163.38137644,0.00013194,2]
[383721606,1757099899168,-30.88110447,0.00013194,2]
[383721609,1757100108875,-173.04023055,0.00013156,2]
[383721610,1757100115372,-17.32716539,0.00013156,2]
[383721611,1757100133797,190.36739594,0.00013024,2]
[383721612,1757100143079,190.36739594,0.00013024,2]
[383721613,1757100159446,190.36739594,0.00013024,2]
[383721614,1757100183020,190.36739594,0.00013024,2]
[383721615,1757100206665,190.36739594,0.00013024,2]
[383721616,1757100230659,190.36739594,0.00013024,2]
[383721617,1757100254625,190.36739594,0.00013024,2]
[383721618,1757100279423,190.36739594,0.00013024,2]
[383721619,1757100303111,190.36739594,0.00013024,2]
[383721636,1757100515910,282.49060832,0.00025,120]
[383721638,1757100525525,225.71795705,0.00013058,2]
[383721641,1757100534581,225.71795705,0.00013058,2]
[383721645,1757100551293,199.38771243,0.00013058,2]
[383721646,1757100560281,225.71795705,0.00013058,2]
[383721647,1757100584676,225.71795705,0.00013058,2]
[383721648,1757100609770,225.71795705,0.00013058,2]
[383721690,1757100632071,-225.71795705,0.0001319,2]
[383721692,1757100632081,-438.72204295,0.000135,2]
[383721694,1757100632092,-312.64278303,0.000135,2]
[383721697,1757100632102,-300.0,0.00013596,2]
[383721700,1757100632111,-1200.0,0.00013596,2]
[383721702,1757100632120,-67.35722197,0.00013597,2]
[383721710,1757100632182,-1132.64277803,0.00013597,2]
[383721712,1757100632191,-881.3668619,0.00013597,2]
[383721714,1757100632201,-496.86076816,0.00013598,2]
[383721716,1757100632210,-1927.23435815,0.00013697,2]
[383721718,1757100632222,-3855.32146968,0.00013697,2]
[383721785,1757100633929,225.71795705,0.00013058,2]
[383721813,1757100637937,-45711.35010687,0.00013598,2]
[383721814,1757100637946,-44217.44417217,0.00013697,2]
[383721815,1757100637956,-500.0,0.00013697,2]
[383721817,1757100637966,-500.0,0.00013697,2]
[383721819,1757100637975,-308.68655807,0.00013697,2]
[383721821,1757100637984,-500.0,0.00013697,2]
[383721823,1757100637993,-500.0,0.00013697,2]
[383721825,1757100638002,-500.0,0.00013697,2]
[383721827,1757100638012,-245.77144342,0.00013697,2]
[383721828,1757100638023,-500.0,0.00013697,2]
[383721829,1757100638032,-500.0,0.00013697,2]
[383721830,1757100638042,-348.57093009,0.00013697,2]
[383721831,1757100638052,-500.0,0.00013697,2]
[383721832,1757100638062,-232.20617555,0.00013697,2]
[383721833,1757100638071,-500.0,0.00013697,2]
[383721834,1757100638080,-500.0,0.00013697,2]
[383721835,1757100638088,-500.0,0.00013697,2]
[383721836,1757100638096,-500.0,0.00013697,2]
[383721837,1757100638104,-500.0,0.00013697,2]
[383721838,1757100638113,-500.0,0.00013697,2]
[383721839,1757100638121,-500.0,0.00013697,2]
[383721840,1757100638130,-500.0,0.00013697,2]
[383721841,1757100638139,-309.06501575,0.00013697,2]
[383721842,1757100638149,-500.0,0.00013697,2]
[383721843,1757100638158,-500.0,0.00013697,2]
[383721844,1757100638167,-500.0,0.00013697,2]
[383721845,1757100638176,-200.0,0.00013697,2]
[383721846,1757100638186,-500.0,0.00013697,2]
[383721847,1757100638195,-500.0,0.00013697,2]
[383721848,1757100638205,-500.0,0.00013697,2]
[383721849,1757100638214,-500.0,0.00013697,2]
[383721850,1757100638223,-500.0,0.00013697,2]
[383721851,1757100638233,-500.0,0.00013697,2]
[383721852,1757100638242,-500.0,0.00013697,2]
[383721853,1757100638252,-500.0,0.00013697,2]
[383721854,1757100638261,-420.22610122,0.00013697,2]
[383721855,1757100638271,-500.0,0.00013697,2]
[383721856,1757100638281,-500.0,0.00013697,2]
[383721857,1757100638291,-500.0,0.00013697,2]
[383721858,1757100638300,-500.0,0.00013697,2]
[383721859,1757100638309,-500.0,0.00013697,2]
[383721860,1757100638318,-500.0,0.00013697,2]
[383721861,1757100638327,-500.0,0.00013697,2]
[383721862,1757100638336,-500.0,0.00013697,2]
[383721863,1757100638345,-500.0,0.00013697,2]
[383721864,1757100638355,-500.0,0.00013697,2]
[383721865,1757100638364,-500.0,0.00013697,2]
[383721866,1757100638374,-500.0,0.00013697,2]
[383721867,1757100638385,-418.79858584,0.00013697,2]
[383721868,1757100638395,-500.0,0.00013697,2]
[383721869,1757100638410,-393.29378909,0.00013698,2]
[383721870,1757100638419,-480.0,0.00013698,2]
[383721871,1757100638428,-480.0,0.00013698,2]
[383721872,1757100638438,-480.0,0.00013698,2]
[383721873,1757100638449,-480.0,0.00013698,2]
[383721874,1757100638458,-480.0,0.00013698,2]
[383721875,1757100638467,-480.0,0.00013698,2]
[383721876,1757100638478,-480.0,0.00013698,2]
[383721877,1757100638488,-480.0,0.00013698,2]
[383721878,1757100638498,-480.0,0.00013698,2]
[383721879,1757100638507,-480.0,0.00013698,2]
[383721880,1757100638517,-480.0,0.00013698,2]
[383721881,1757100638527,-480.0,0.00013698,2]
[383721882,1757100638538,-480.0,0.00013698,2]
[383721883,1757100638550,-480.0,0.00013698,2]
[383721884,1757100638560,-480.65220212,0.00013698,2]
[383721885,1757100638571,-480.0,0.00013698,2]
[383721886,1757100638582,-480.0,0.00013698,2]
[383721887,1757100638592,-230.21652934,0.00013698,2]
[383721888,1757100638603,-480.0,0.00013698,2]
[383721889,1757100638613,-480.0,0.00013698,2]
[383721890,1757100638623,-481.03556,0.00013698,2]
[383721891,1757100638633,-480.0,0.00013698,2]
[383721892,1757100638642,-480.0,0.00013698,2]
[383721893,1757100638653,-480.0,0.00013698,2]
[383721894,1757100638662,-480.0,0.00013698,2]
[383721895,1757100638672,-480.0,0.00013698,2]
[383721896,1757100638681,-480.0,0.00013698,2]
[383721897,1757100638691,-480.44954179,0.00013698,2]
[383721898,1757100638700,-480.0,0.00013698,2]
[383721899,1757100638709,-480.0,0.00013698,2]
[383721900,1757100638719,-480.0,0.00013698,2]
[383721901,1757100638728,-480.0,0.00013698,2]
[383721902,1757100638738,-480.0,0.00013698,2]
[383721903,1757100638748,-480.0,0.00013698,2]
[383721904,1757100638757,-480.0,0.00013698,2]
[383721905,1757100638767,-480.0,0.00013698,2]
[383721906,1757100638777,-480.0,0.00013698,2]
[383721907,1757100638786,-480.0,0.00013698,2]
[383721908,1757100638795,-480.0,0.00013698,2]
[383721909,1757100638804,-482.1792326,0.00013698,2]
[383721910,1757100638814,-480.0,0.00013698,2]
[383721911,1757100638823,-480.0,0.00013698,2]
[383721912,1757100638833,-480.0,0.00013698,2]
[383721913,1757100638843,-480.0,0.00013698,2]
[383721914,1757100638852,-480.0,0.00013698,2]
[383721915,1757100638861,-480.0,0.00013698,2]
[383721916,1757100638871,-480.0,0.00013698,2]
[383721917,1757100638881,-480.0,0.00013698,2]
[383721918,1757100638890,-480.79761226,0.00013698,2]
[383721919,1757100638900,-480.0,0.00013698,2]
[383721920,1757100638909,-480.0,0.00013698,2]
[383721921,1757100638919,-232.49825972,0.00013698,2]
[383721922,1757100638928,-480.0,0.00013698,2]
[383721923,1757100638938,-480.0,0.00013698,2]
[383721924,1757100638947,-480.0,0.00013698,2]
[383721925,1757100638957,-480.0,0.00013698,2]
[383721926,1757100638966,-389.55490697,0.00013698,2]
[383721927,1757100638978,-480.0,0.00013698,2]
[383721928,1757100638992,-480.0,0.00013698,2]
[383721929,1757100639006,-480.0,0.00013698,2]
[383721930,1757100639018,-480.0,0.00013698,2]
[383721931,1757100639029,-480.0,0.00013698,2]
[383721932,1757100639043,-480.0,0.00013698,2]
[383721933,1757100639055,-480.0,0.00013698,2]
[383721934,1757100639068,-480.0,0.00013698,2]
[383721935,1757100639081,-254.99838623,0.00013698,2]
[383721936,1757100639095,-480.0,0.00013698,2]
[383721937,1757100639109,-480.0,0.00013698,2]
[383721938,1757100639121,-480.0,0.00013698,2]
[383721939,1757100639134,-481.32958411,0.00013698,2]
[383721940,1757100639145,-636.53,0.00013698,2]
[383721941,1757100639157,-480.0,0.00013698,2]
[383721942,1757100639171,-480.0,0.00013698,2]
[383721943,1757100639186,-480.0,0.00013698,2]
[383721944,1757100639199,-480.0,0.00013698,2]
[383721945,1757100639211,-480.0,0.00013698,2]
[383721946,1757100639224,-475.4696204,0.00013698,2]
[383721947,1757100639238,-480.0,0.00013698,2]
[383721948,1757100639251,-482.20950326,0.00013698,2]
[383721949,1757100639263,-480.0,0.00013698,2]
[383721950,1757100639278,-480.0,0.00013698,2]
[383721951,1757100639292,-480.0,0.00013698,2]
[383721952,1757100639305,-480.0,0.00013698,2]
[383721953,1757100639319,-480.0,0.00013698,2]